Workbook

Sheet Май
A1: Движние ГП за Май 2017 года
A2: N/N | B2: Остаток на начало периода | G2: Приход | L2: Продано банки 1 литр | O2: Продано банка 2,4 литр | R2: Продано банка 3 литр | U2: Продоно Крышки № 5 | V2: Продоно Крышка № 9;10 | W2: Остаток на конец периода
B3: 1 литр | C3: 2,4 литра | D3: 3 литр | E3: Крышка № 5 | F3: Крышка № 9;10 | G3: 1 литр | H3: 2,4 литра | I3: 3 литр | J3: Крышка № 5 | K3: Крышка № 9;10 | L3: Количество | M3: Наименование покупателя | O3: Количество | P3: Наименование покупателя | R3: Количество | S3: Наименование покупателя | U3: Количество | V3: Количество | W3: 1 литр | X3: 2,4 литра | Y3: 3 литра | Z3: Крышка № 5 | AA3: Крышка № 9;10
A4: 2017-05-15 | B4: 89493 | C4: 1311 | D4: 5189 | E4: 55492 | F4: 6500 | L4: =N4+N5+N6+N7 -> 6237 | N4: 6237 | R4: =T4+T5+T6+T7 -> 0 | U4: 6237 | V4: =O4+R4 -> 0 | W4: =B4+G4-L4 -> 83256 | X4: =C4+H4-O4 -> 1311 | Y4: =D4+I4-R4 -> 5189 | Z4: =E4+J4-U4 -> 49255 | AA4: =F4+K4-R4-V4 -> 6500
A8: 2017-05-16 | B8: =W4 -> 83256 | C8: =X4 -> 1311 | D8: =Y4 -> 5189 | E8: =Z4 -> 49255 | F8: =AA4 -> 6500 | L8: =N8+N9+N10+N11 -> 0 | R8: =T8+T9+T10+T11 -> 0 | W8: =B8+G8-L8 -> 83256 | X8: =C8+H8-O8 -> 1311 | Y8: =D8+I8-R8 -> 5189 | Z8: =E8+J8-U8 -> 49255 | AA8: =F8+K8-R8-V8 -> 6500
A12: 2017-05-17 | B12: =W8 -> 83256 | C12: =X8 -> 1311 | D12: =Y8 -> 5189 | E12: =Z8 -> 49255 | F12: =AA8 -> 6500 | L12: =N12+N13+N14+N15 -> 0 | O12: =Q12+Q13+Q14+Q15 -> 1134 | Q12: 1134 | R12: =T12+T13+T14+T15 -> 0 | V12: =O12+R12 -> 1134 | W12: =B12+G12-L12 -> 83256 | X12: =C12+H12-O12 -> 177 | Y12: =D12+I12-R12 -> 5189 | Z12: =E12+J12-U12 -> 49255 | AA12: =F12+K12-V12 -> 5366
A16: 2017-05-18 | B16: =W12 -> 83256 | C16: =X12 -> 177 | D16: =Y12 -> 5189 | E16: =Z12 -> 49255 | F16: =AA12 -> 5366 | L16: =N16+N17+N18+N19 -> 0 | R16: =T16+T17+T18+T19 -> 0 | W16: =B16+G16-L16 -> 83256 | X16: =C16+H16-O16 -> 177 | Y16: =D16+I16-R16 -> 5189 | Z16: =E16+J16-U16 -> 49255 | AA16: =F16+K16-R16-V16 -> 5366
A20: 2017-05-19 | B20: =W16 -> 83256 | C20: =X16 -> 177 | D20: =Y16 -> 5189 | E20: =Z16 -> 49255 | F20: =AA16 -> 5366 | L20: =N20+N21+N22+N23 -> 7128 | N20: 7128 | R20: =T20+T21+T22+T23 -> 0 | U20: 7128 | W20: =B20+G20-L20 -> 76128 | X20: =C20+H20-O20 -> 177 | Y20: =D20+I20-R20 -> 5189 | Z20: =E20+J20-U20 -> 42127 | AA20: =F20+K20-R20-V20 -> 5366
A24: 2017-05-20 | B24: =W20 -> 76128 | C24: =X20 -> 177 | D24: =Y20 -> 5189 | E24: =Z20 -> 42127 | F24: =AA20 -> 5366 | L24: =N24+N25+N26+N27 -> 0 | R24: =T24+T25+T26+T27 -> 0 | W24: =B24+G24-L24 -> 76128 | X24: =C24+H24-O24 -> 177 | Y24: =D24+I24-R24 -> 5189 | Z24: =E24+J24-U24 -> 42127 | AA24: =F24+K24-V24 -> 5366
A28: 2017-05-21 | B28: =W24 -> 76128 | C28: =X24 -> 177 | D28: =Y24 -> 5189 | E28: =Z24 -> 42127 | F28: =AA24 -> 5366 | R28: =T28+T29+T30+T31 -> 0 | W28: =B28+G28-L28 -> 76128 | X28: =C28+H28-O28 -> 177 | Y28: =D28+I28-R28 -> 5189 | Z28: =E28+J28-U28 -> 42127 | AA28: =F28+K28-V28 -> 5366
A32: 2017-05-22 | B32: =W28 -> 76128 | C32: =X28 -> 177 | D32: =Y28 -> 5189 | E32: =Z28 -> 42127 | F32: =AA28 -> 5366 | L32: =N32+N33+N34+N35 -> 10692 | N32: 10692 | R32: =T32+T33+T34+T35 -> 0 | U32: 10692 | W32: =B32+G32-L32 -> 65436 | X32: =C32+H32-O32 -> 177 | Y32: =D32+I32-R32 -> 5189 | Z32: =E32+J32-U32 -> 31435 | AA32: =F32+K32-V32 -> 5366
A36: 2017-05-23 | B36: =W32 -> 65436 | C36: =X32 -> 177 | D36: =Y32 -> 5189 | E36: =Z32 -> 31435 | F36: =AA32 -> 5366 | L36: =N36+N37+N38+N39 -> 3564 | N36: 3564 | O36: =Q36+Q37+Q38+Q39 -> 177 | Q36: 177 | R36: =T36+T37+T38+T39 -> 0 | U36: 3564 | W36: =B36+G36-L36 -> 61872 | X36: =C36+H36-O36 -> 0 | Y36: =D36+I36-R36 -> 5189 | Z36: =E36+J36-U36 -> 27871 | AA36: =F36+K36-V36 -> 5366
A40: 2017-05-24 | B40: =W36 -> 61872 | C40: =X36 -> 0 | D40: =Y36 -> 5189 | E40: =Z36 -> 27871 | F40: =AA36 -> 5366 | L40: =N40+N41+N42+N43 -> 0 | R40: =T40+T41+T42+T43 -> 882 | S40: Дитекс | T40: 882 | V40: =O40+R40 -> 882 | W40: =B40+G40-L40 -> 61872 | X40: =C40+H40-O40 -> 0 | Y40: =D40+I40-R40 -> 4307 | Z40: =E40+J40-U40 -> 27871 | AA40: =F40+K40-V40 -> 4484
A44: 2017-05-25 | B44: =W40 -> 61872 | C44: =X40 -> 0 | D44: =Y40 -> 4307 | E44: =Z40 -> 27871 | F44: =AA40 -> 4484 | L44: =N44+N45+N46+N47 -> 0 | R44: =T44+T45+T46+T47 -> 0 | W44: =B44+G44-L44 -> 61872 | X44: =C44+H44-O44 -> 0 | Y44: =D44+I44-R44 -> 4307 | Z44: =E44+J44-U44 -> 27871 | AA44: 4484
A48: 2017-05-26 | B48: =W44 -> 61872 | C48: =X44 -> 0 | D48: =Y44 -> 4307 | E48: =Z44 -> 27871 | F48: =AA44 -> 4484 | L48: =N48+N49+N50+N51 -> 0 | R48: =T48+T49+T50+T51 -> 0 | W48: =B48+G48-L48 -> 61872 | X48: =C48+H48-O48 -> 0 | Y48: =D48+I48-R48 -> 4307 | Z48: =E48+J48-U48 -> 27871 | AA48: =F48+K48-V48 -> 4484
A52: 2017-05-27 | B52: =W48 -> 61872 | C52: =X48 -> 0 | D52: =Y48 -> 4307 | E52: =Z48 -> 27871 | F52: =AA48 -> 4484 | L52: =N52+N53+N54+N55 -> 0 | R52: =T52+T53+T54+T55 -> 0 | W52: =B52+G52-L52 -> 61872 | X52: =C52+H52-O52 -> 0 | Y52: =D52+I52-R52 -> 4307 | Z52: =E52+J52-U52 -> 27871 | AA52: =F52+K52-V52 -> 4484
A56: 2017-05-28 | B56: =W52 -> 61872 | C56: =X52 -> 0 | D56: =Y52 -> 4307 | E56: =Z52 -> 27871 | F56: =AA52 -> 4484 | L56: =N56+N57+N58+N59 -> 0 | R56: =T56+T57+T58+T59 -> 0 | W56: =B56+G56-L56 -> 61872 | X56: =C56+H56-O56 -> 0 | Y56: =D56+I56-R56 -> 4307 | Z56: =E56+J56-U56 -> 27871 | AA56: =F56+K56-V56 -> 4484
A60: 2017-05-29 | B60: =W56 -> 61872 | C60: =X56 -> 0 | D60: =Y56 -> 4307 | E60: =Z56 -> 27871 | F60: =AA56 -> 4484 | L60: =N60+N61+N62+N63 -> 0 | R60: =T60+T61+T62+T63 -> 0 | W60: =B60+G60-L60 -> 61872 | X60: =C60+H60-O60 -> 0 | Y60: =D60+I60-R60 -> 4307 | Z60: =E60+J60-U60 -> 27871 | AA60: =F60+K60-V60 -> 4484
A64: 2017-05-30 | B64: =W60 -> 61872 | C64: =X60 -> 0 | D64: =Y60 -> 4307 | E64: =Z60 -> 27871 | F64: =AA60 -> 4484 | L64: =N64+N65+N66+N67 -> 0 | R64: =T64+T65+T66+T67 -> 0 | W64: =B64+G64-L64 -> 61872 | X64: =C64+H64-O64 -> 0 | Y64: =D64+I64-R64 -> 4307 | Z64: =E64+J64-U64 -> 27871 | AA64: =F64+K64-V64 -> 4484
A68: 2017-05-31 | B68: =W64 -> 61872 | C68: =X64 -> 0 | D68: =Y64 -> 4307 | E68: =Z64 -> 27871 | F68: =AA64 -> 4484 | L68: =N68+N69+N70+N71 -> 0 | R68: =T68+T69+T70+T71 -> 0 | W68: =B68+G68-L68 -> 61872 | X68: =C68+H68-O68 -> 0 | Y68: =D68+I68-R68 -> 4307 | Z68: =E68+J68-U68 -> 27871 | AA68: =F68+K68-V68 -> 4484
A73: Итого | B73: =B4 -> 89493 | C73: =C4 -> 1311 | D73: =D4 -> 5189 | E73: =E4 -> 55492 | F73: =F4 -> 6500 | G73: =G4+G12+G12+G16+G20+G24+G28+G32+G36+G40+G44+G48+G52+G56+G60+G64+G68 -> 0 | H73: 0 | I73: 0 | J73: 0 | K73: 0 | L73: 27621 | O73: =O4+O12+O12+O16+O20+O24+O28+O32+O36+O40+O44+O48+O52+O56+O60+O64+O68 -> 2445 | R73: =R4+R12+R12+R16+R20+R24+R28+R32+R36+R40+R44+R48+R52+R56+R60+R64+R68 -> 882 | U73: =U4+U12+U12+U16+U20+U24+U28+U32+U36+U40+U44+U48+U52+U56+U60+U64+U68 -> 27621 | V73: 3150 | W73: =W68 -> 61872 | X73: =X68 -> 0 | Y73: =Y68 -> 4307 | Z73: =Z68 -> 27871 | AA73: =AA68 -> 4484

Sheet Июнь
A1: Движние ГП за Июнь 2017 года
A2: N/N | B2: Остаток на начало периода | G2: Приход | L2: Продано банки 1 литр | O2: Продано банка 2,4 литр | R2: Продано банка 3 литр | U2: Продоно Крышки № 5 | V2: Продоно Крышка № 9;10 | W2: Остаток на конец периода
B3: 1 литр | C3: 2,4 литра | D3: 3 литр | E3: Крышка № 5 | F3: Крышка № 9;10 | G3: 1 литр | H3: 2,4 литра | I3: 3 литр | J3: Крышка № 5 | K3: Крышка № 9;10 | L3: Наименование покупателя | M3: Количество | N3: Количество | O3: Наименование покупателя | P3: Количество | Q3: Количество | R3: Наименование покупателя | S3: Количество | T3: Количество | U3: Количество | V3: Количество | W3: 1 литр | X3: 2,4 литра | Y3: 3 литра | Z3: Крышка № 5 | AA3: Крышка № 9;10
A4: 2017-06-01 | B4: =Май!W73 -> 61872 | C4: =Май!X73 -> 0 | D4: =Май!Y73 -> 4307 | E4: =Май!Z73 -> 27871 | F4: =Май!AA73 -> 4484 | N4: =M4+M5+M6+M7 -> 0 | Q4: =P4+P5+P6+P7 -> 0 | T4: =S4+S5+S6+S7 -> 0 | W4: =B4+G4-N4 -> 61872 | X4: =C4+H4-Q4 -> 0 | Y4: =D4+I4-T4 -> 4307 | Z4: =E4+J4-U4 -> 27871 | AA4: =F4+K4-V4 -> 4484
A8: 2017-06-02 | B8: =W4 -> 61872 | C8: =X4 -> 0 | D8: =Y4 -> 4307 | E8: =Z4 -> 27871 | F8: =AA4 -> 4484 | N8: =M8+M9+M10+M11 -> 0 | Q8: =P8+P9+P10+P11 -> 0 | T8: =S8+S9+S10+S11 -> 0 | W8: 61872 | X8: 0 | Y8: 4307 | Z8: 27871 | AA8: 4484
A12: 2017-06-03 | B12: =W8 -> 61872 | C12: =X8 -> 0 | D12: =Y8 -> 4307 | E12: =Z8 -> 27871 | F12: =AA8 -> 4484 | N12: =M12+M13+M14+M15 -> 0 | Q12: =P12+P13+P14+P15 -> 0 | T12: =S12+S13+S14+S15 -> 0 | W12: 61872 | X12: 0 | Y12: 4307 | Z12: 27871 | AA12: 4484
A16: 2017-06-04 | B16: =W12 -> 61872 | C16: =X12 -> 0 | D16: =Y12 -> 4307 | E16: =Z12 -> 27871 | F16: =AA12 -> 4484 | N16: =M16+M17+M18+M19 -> 0 | Q16: =P16+P17+P18+P19 -> 0 | T16: =S16+S17+S18+S19 -> 0 | W16: 61872 | X16: 0 | Y16: 4307 | Z16: 27871 | AA16: 4484
A20: 2017-06-05 | B20: =W16 -> 61872 | C20: =X16 -> 0 | D20: =Y16 -> 4307 | E20: =Z16 -> 27871 | F20: =AA16 -> 4484 | N20: =M20+M21+M22+M23 -> 0 | Q20: =P20+P21+P22+P23 -> 0 | T20: =S20+S21+S22+S23 -> 0 | W20: 61872 | X20: 0 | Y20: 4307 | Z20: 27871 | AA20: 4484
A24: 2017-06-06 | B24: =W20 -> 61872 | C24: =X20 -> 0 | D24: =Y20 -> 4307 | E24: 27871 | F24: 4484 | N24: =M24+M25+M26+M27 -> 0 | Q24: =P24+P25+P26+P27 -> 0 | T24: =S24+S25+S26+S27 -> 0 | W24: 61872 | X24: 0 | Y24: 4307 | Z24: 27871 | AA24: 4484
A28: 2017-06-07 | B28: =W24 -> 61872 | C28: =X24 -> 0 | D28: =Y24 -> 4307 | E28: =Z24 -> 27871 | F28: =AA24 -> 4484 | N28: =M28+M29+M30+M31 -> 0 | Q28: =P28+P29+P30+P31 -> 0 | T28: =S28+S29+S30+S31 -> 0 | W28: 61872 | X28: 0 | Y28: 4307 | Z28: 27871 | AA28: 4484
A32: 2017-06-08 | B32: =W28 -> 61872 | C32: =X28 -> 0 | D32: =Y28 -> 4307 | E32: 27871 | F32: 4484 | N32: =M32+M33+M34+M35 -> 0 | Q32: =P32+P33+P34+P35 -> 0 | T32: =S32+S33+S34+S35 -> 0 | W32: 61872 | X32: 0 | Y32: 4307 | Z32: 27871 | AA32: 4484
A36: 2017-06-09 | B36: =W32 -> 61872 | C36: =X32 -> 0 | D36: =Y32 -> 4307 | E36: =Z32 -> 27871 | F36: =AA32 -> 4484 | N36: =M36+M37+M38+M39 -> 0 | Q36: =P36+P37+P38+P39 -> 0 | T36: =S36+S37+S38+S39 -> 0 | W36: 61872 | X36: 0 | Y36: 4307 | Z36: 27871 | AA36: 4484
A40: 2017-06-10 | B40: =W36 -> 61872 | C40: =X36 -> 0 | D40: =Y36 -> 4307 | E40: =Z36 -> 27871 | F40: =AA36 -> 4484 | N40: =M40+M41+M42+M43 -> 0 | Q40: =P40+P41+P42+P43 -> 0 | T40: =S40+S41+S42+S43 -> 0 | W40: 61872 | X40: 0 | Y40: 4307 | Z40: 27871 | AA40: 4484
A44: 2017-06-11 | B44: =W40 -> 61872 | C44: =X40 -> 0 | D44: =Y40 -> 4307 | E44: =Z40 -> 27871 | F44: =AA40 -> 4484 | N44: =M44+M45+M46+M47 -> 0 | Q44: =P44+P45+P46+P47 -> 0 | T44: =S44+S45+S46+S47 -> 0 | W44: 61872 | X44: =C44+H44-Q44 -> 0 | Y44: =D44+I44-T44 -> 4307 | Z44: 27871 | AA44: 4484
A48: 2017-06-12 | B48: =W44 -> 61872 | C48: =X44 -> 0 | D48: =Y44 -> 4307 | E48: =Z44 -> 27871 | F48: =AA44 -> 4484 | N48: =M48+M49+M50+M51 -> 0 | Q48: =P48+P49+P50+P51 -> 0 | T48: =S48+S49+S50+S51 -> 0 | W48: 61872 | X48: 0 | Y48: 4307 | Z48: 27871 | AA48: 4484
A52: 2017-06-13 | B52: =W48 -> 61872 | C52: =X48 -> 0 | D52: =Y48 -> 4307 | E52: =Z48 -> 27871 | F52: =AA48 -> 4484 | W52: 61872 | X52: 0 | Y52: 4307 | Z52: 27871 | AA52: 4484
A53: 2017-06-14 | B53: =W52 -> 61872 | C53: =X52 -> 0 | D53: =Y52 -> 4307 | E53: 27871 | F53: 4484 | W53: 61872 | X53: 0 | Y53: 4307 | Z53: 27871 | AA53: 4484
A54: 2017-06-15 | B54: 61872 | C54: 0 | D54: 4307 | E54: 27871 | F54: 4484 | W54: 61872 | X54: 0 | Y54: 4307 | Z54: 27871 | AA54: 4484
A55: 2017-06-16 | B55: =W54 -> 61872 | C55: 0 | D55: 4307 | E55: 27871 | F55: 4484 | W55: 61872 | X55: 0 | Y55: 4307 | Z55: 27871 | AA55: 4484
A56: 2017-06-17 | B56: 61872 | C56: 0 | D56: 4307 | E56: 27871 | F56: 4484 | W56: 61872 | X56: 0 | Y56: 4307 | Z56: 27871 | AA56: 4484
A57: 2017-06-18 | B57: 61872 | C57: 0 | D57: 4307 | E57: 27871 | F57: 4484 | W57: 61872 | X57: 0 | Y57: 4307 | Z57: 27871 | AA57: 4484
A58: 2017-06-19 | B58: 61872 | C58: 0 | D58: 4307 | E58: 27871 | F58: 4484 | W58: 61872 | X58: 0 | Y58: 4307 | Z58: 27871 | AA58: 4484
A59: 2017-06-20 | B59: 61872 | C59: 0 | D59: 4307 | E59: 27871 | F59: 4484 | W59: 61872 | X59: 0 | Y59: 4307 | Z59: 27871 | AA59: 4484
A60: 2017-06-21 | B60: 61872 | C60: 0 | D60: 4307 | E60: 27871 | F60: 4484 | W60: 61872 | X60: 0 | Y60: 4307 | Z60: 27871 | AA60: 4484
A61: 2017-06-22 | B61: 61872 | C61: 0 | D61: 4307 | E61: 27871 | F61: 4484 | W61: 61872 | X61: 0 | Y61: 4307 | Z61: 27871 | AA61: 4484
A62: 2017-06-23 | B62: 61872 | C62: 0 | D62: 4307 | E62: 27871 | F62: 4484 | W62: 61872 | X62: 0 | Y62: 4307 | Z62: 27871 | AA62: 4484
A63: 2017-06-24 | B63: 61872 | C63: 0 | D63: 4307 | E63: 27871 | F63: 4484 | W63: 61872 | X63: 0 | Y63: 4307 | Z63: 27871 | AA63: 4484
A64: 2017-06-25 | B64: 61872 | C64: 0 | D64: 4307 | E64: 27871 | F64: 4484 | W64: 61872 | X64: 0 | Y64: 4307 | Z64: 27871 | AA64: 4484
A65: 2017-06-26 | B65: 61872 | C65: 0 | D65: 4307 | E65: 27871 | F65: 4484 | W65: 61872 | X65: 0 | Y65: 4307 | Z65: 27871 | AA65: 4484
A66: 2017-06-27 | B66: 61872 | C66: 0 | D66: 4307 | E66: 27871 | F66: 4484 | W66: 61872 | X66: 0 | Y66: 4307 | Z66: 27871 | AA66: 4484
A67: 2017-06-28 | B67: 61872 | C67: 0 | D67: 4307 | E67: 27871 | F67: 4484 | W67: 61872 | X67: 0 | Y67: 4307 | Z67: 27871 | AA67: 4484
A68: 2017-06-29 | B68: 61872 | C68: 0 | D68: 4307 | E68: 27871 | F68: 4484 | W68: 61872 | X68: 0 | Y68: 4307 | Z68: 27871 | AA68: 4484
A69: 2017-06-30 | B69: 61872 | C69: 0 | D69: 4307 | E69: 27871 | F69: 4484 | W69: 61872 | X69: 0 | Y69: 4307 | Z69: 27871 | AA69: 4484
A71: Итого | B71: =B54 -> 61872 | C71: =C54 -> 0 | D71: =D54 -> 4307 | E71: =E54 -> 27871 | F71: =F54 -> 4484 | G71: =G4+G8+G12+G16+G20+G24+G28+G32+G36+G40+G46+G48+G52+G53+G54+G55+G56+G57+G58+G59+G60+G61+G62+G63+G64+G65+G66+G67+G68+G69 -> 0 | H71: 0 | I71: 0 | J71: 0 | K71: 0 | N71: 0 | Q71: 0 | T71: 0 | U71: 0 | V71: 0 | W71: =W69 -> 61872 | X71: =X69 -> 0 | Y71: =Y69 -> 4307 | Z71: =Z69 -> 27871 | AA71: =AA69 -> 4484

Sheet Июль
A1: Движние ГП за Июль 2017 года
A2: N/N | B2: Остаток на начало периода | G2: Приход | L2: Продано банки 1 литр | M2: Продано банка 2,4 литр | N2: Продано банка 3 литр | O2: Продоно Крышки № 5 | P2: Продоно Крышка № 9;10 | Q2: Остаток на конец периода
B3: 1 литр | C3: 2,4 литра | D3: 3 литр | E3: Крышка № 5 | F3: Крышка № 9;10 | G3: 1 литр | H3: 2,4 литра | I3: 3 литр | J3: Крышка № 5 | K3: Крышка № 9;10 | L3: Количество | M3: Количество | N3: Количество | O3: Количество | P3: Количество | Q3: 1 литр | R3: 2,4 литра | S3: 3 литра | T3: Крышка № 5 | U3: Крышка № 9;10
A4: 2017-07-01 | B4: =Июнь!W71 -> 61872 | C4: =Июнь!X71 -> 0 | D4: =Июнь!Y71 -> 4307 | E4: =Июнь!Z71 -> 27871 | F4: =Июнь!AA71 -> 4484 | Q4: =B4+G4-L4 -> 61872 | R4: =C4+H4-M4 -> 0 | S4: =D4+I4-N4 -> 4307 | T4: =E4+J4-O4 -> 27871 | U4: =F4+K4-P4 -> 4484
A5: 2017-07-02 | B5: =Q4 -> 61872 | C5: 0 | D5: 4307 | E5: 27871 | F5: 4484 | Q5: =B5+G5-L5 -> 61872 | R5: =C5+H5-M5 -> 0 | S5: =D5+I5-N5 -> 4307 | T5: =E5+J5-O5 -> 27871 | U5: =F5+K5-P5 -> 4484
A6: 2017-07-03 | B6: 61872 | C6: 0 | D6: 4307 | E6: 27871 | F6: 4484 | Q6: 61872 | R6: 0 | S6: 4307 | T6: 27871 | U6: 4484
A7: 2017-07-04 | B7: 61872 | C7: 0 | D7: 4307 | E7: 27871 | F7: 4484 | Q7: 61872 | R7: 0 | S7: 4307 | T7: 27871 | U7: 4484
A8: 2017-07-05 | B8: 61872 | C8: 0 | D8: 4307 | E8: 27871 | F8: 4484 | Q8: 61872 | R8: 0 | S8: 4307 | T8: 27871 | U8: 4484
A9: 2017-07-06 | B9: 61872 | C9: 0 | D9: 4307 | E9: 27871 | F9: 4484 | Q9: 61872 | R9: 0 | S9: 4307 | T9: 27871 | U9: 4484
A10: 2017-07-07 | B10: 61872 | C10: 0 | D10: 4307 | E10: 27871 | F10: 4484 | Q10: 61872 | R10: 0 | S10: 4307 | T10: 27871 | U10: 4484
A11: 2017-07-08 | B11: 61872 | C11: 0 | D11: 4307 | E11: 27871 | F11: 4484 | Q11: 61872 | R11: 0 | S11: 4307 | T11: 27871 | U11: 4484
A12: 2017-07-09 | B12: 61872 | C12: 0 | D12: 4307 | E12: 27871 | F12: 4484 | Q12: 61872 | R12: 0 | S12: 4307 | T12: 27871 | U12: 4484
A13: 2017-07-10 | B13: 61872 | C13: 0 | D13: 4307 | E13: 27871 | F13: 4484 | Q13: 61872 | R13: 0 | S13: 4307 | T13: 27871 | U13: 4484
A14: 2017-07-11 | B14: 61872 | C14: 0 | D14: 4307 | E14: 27871 | F14: 4484 | Q14: 61872 | R14: 0 | S14: 4307 | T14: 27871 | U14: 4484
A15: 2017-07-12 | B15: 61872 | C15: 0 | D15: 4307 | E15: 27871 | F15: 4484 | Q15: 61872 | R15: 0 | S15: 4307 | T15: 27871 | U15: 4484
A16: 2017-07-13 | B16: 61872 | C16: 0 | D16: 4307 | E16: 27871 | F16: 4484 | Q16: 61872 | R16: 0 | S16: 4307 | T16: 27871 | U16: 4484
A17: 2017-07-14 | B17: 61872 | C17: 0 | D17: 4307 | E17: 27871 | F17: 4484 | Q17: 61872 | R17: 0 | S17: 4307 | T17: 27871 | U17: 4484
A18: 2017-07-15 | B18: 61872 | C18: 0 | D18: 4307 | E18: 27871 | F18: 4484 | Q18: 61872 | R18: 0 | S18: 4307 | T18: 27871 | U18: 4484
A19: 2017-07-16 | B19: 61872 | C19: 0 | D19: 4307 | E19: 27871 | F19: 4484 | Q19: 61872 | R19: 0 | S19: 4307 | T19: 27871 | U19: 4484
A20: 2017-07-17 | B20: 61872 | C20: 0 | D20: 4307 | E20: 27871 | F20: 4484 | Q20: 61872 | R20: 0 | S20: 4307 | T20: 27871 | U20: 4484
A21: 2017-07-18 | B21: =Q20 -> 61872 | C21: 0 | D21: 4307 | E21: 27871 | F21: 4484 | Q21: 61872 | R21: 0 | S21: 4307 | T21: 27871 | U21: 4484
A22: 2017-07-19 | B22: 61872 | C22: 0 | D22: 4307 | E22: 27871 | F22: 4484 | Q22: 61872 | R22: 0 | S22: 4307 | T22: 27871 | U22: 4484
A23: 2017-07-20 | B23: 61872 | C23: 0 | D23: 4307 | E23: 27871 | F23: 4484 | Q23: 61872 | R23: 0 | S23: 4307 | T23: 27871 | U23: 4484
A24: 2017-07-21 | B24: 61872 | C24: 0 | D24: 4307 | E24: 27871 | F24: 4484 | Q24: 61872 | R24: 0 | S24: 4307 | T24: 27871 | U24: 4484
A25: 2017-07-22 | B25: 61872 | C25: 0 | D25: 4307 | E25: 27871 | F25: 4484 | Q25: 61872 | R25: 0 | S25: 4307 | T25: 27871 | U25: 4484
A26: 2017-07-23 | B26: 61872 | C26: 0 | D26: 4307 | E26: 27871 | F26: 4484 | Q26: 61872 | R26: 0 | S26: 4307 | T26: 27871 | U26: 4484
A27: 2017-07-24 | B27: 61872 | C27: 0 | D27: 4307 | E27: 27871 | F27: 4484 | Q27: 61872 | R27: 0 | S27: 4307 | T27: 27871 | U27: 4484
A28: 2017-07-25 | B28: 61872 | C28: 0 | D28: 4307 | E28: 27871 | F28: 4484 | Q28: 61872 | R28: 0 | S28: 4307 | T28: 27871 | U28: 4484
A29: 2017-07-26 | B29: 61872 | C29: 0 | D29: 4307 | E29: 27871 | F29: 4484 | Q29: 61872 | R29: 0 | S29: 4307 | T29: 27871 | U29: 4484
A30: 2017-07-27 | B30: 61872 | C30: 0 | D30: 4307 | E30: 27871 | F30: 4484 | Q30: 61872 | R30: 0 | S30: 4307 | T30: 27871 | U30: 4484
A31: 2017-07-28 | B31: 61872 | C31: 0 | D31: 4307 | E31: 27871 | F31: 4484 | Q31: 61872 | R31: 0 | S31: 4307 | T31: 27871 | U31: 4484
A32: 2017-07-29 | B32: 61872 | C32: 0 | D32: 4307 | E32: 27871 | F32: 4484 | Q32: 61872 | R32: 0 | S32: 4307 | T32: 27871 | U32: 4484
A33: 2017-07-30 | B33: =Q32 -> 61872 | C33: 0 | D33: 4307 | E33: 27871 | F33: 4484 | Q33: 61872 | R33: 0 | S33: 4307 | T33: 27871 | U33: 4484
A34: 2017-07-31 | B34: 61872 | C34: 0 | D34: 4307 | E34: 27871 | F34: 4484 | Q34: 61872 | R34: 0 | S34: 4307 | T34: 27871 | U34: 4484
A36: Итого | B36: =B18 -> 61872 | C36: =C18 -> 0 | D36: =D18 -> 4307 | E36: =E18 -> 27871 | F36: =F18 -> 4484 | G36: =G4+G5+G6+G7+G8+G9+G10+G11+G12+G13+G14+G15+G16+G17+G18+G19+G20+G21+G22+G23+G24+G25+G26+G27+G28+G29+G30+G31+G32+G33+G34 -> 0 | H36: 0 | I36: 0 | J36: 0 | K36: 0 | L36: 0 | M36: 0 | N36: 0 | O36: 0 | P36: 0 | Q36: =Q34 -> 61872 | R36: =R34 -> 0 | S36: =S34 -> 4307 | T36: =T34 -> 27871 | U36: =U34 -> 4484

Sheet Август
A1: Движние ГП за Август 2017 года
A2: N/N | B2: Остаток на начало периода | G2: Приход | L2: Продано банки 1 литр | M2: Продано банка 2,4 литр | N2: Продано банка 3 литр | O2: Продоно Крышки № 5 | P2: Продоно Крышка № 9;10 | Q2: Остаток на конец периода
B3: 1 литр | C3: 2,4 литра | D3: 3 литр | E3: Крышка № 5 | F3: Крышка № 9;10 | G3: 1 литр | H3: 2,4 литра | I3: 3 литр | J3: Крышка № 5 | K3: Крышка № 9;10 | L3: Количество | M3: Количество | N3: Количество | O3: Количество | P3: Количество | Q3: 1 литр | R3: 2,4 литра | S3: 3 литра | T3: Крышка № 5 | U3: Крышка № 9;10
A4: 2017-08-01 | B4: =Июль!Q36 -> 61872 | C4: =Июль!R36 -> 0 | D4: =Июль!S36 -> 4307 | E4: =Июль!T36 -> 27871 | F4: =Июль!U36 -> 4484 | Q4: =B4+G4-L4 -> 61872 | R4: =C4+H4-M4 -> 0 | S4: =D4+I4-N4 -> 4307 | T4: =E4+J4-O4 -> 27871 | U4: =F4+K4-P4 -> 4484
A5: 2017-08-02 | B5: =Q4 -> 61872 | C5: 0 | D5: 4307 | E5: 27871 | F5: 4484 | Q5: =B5+G5-L5 -> 61872 | R5: =C5+H5-M5 -> 0 | S5: =D5+I5-N5 -> 4307 | T5: =E5+J5-O5 -> 27871 | U5: =F5+K5-P5 -> 4484
A6: 2017-08-03 | B6: 61872 | C6: 0 | D6: 4307 | E6: 27871 | F6: 4484 | Q6: 61872 | R6: 0 | S6: 4307 | T6: 27871 | U6: 4484
A7: 2017-08-04 | B7: 61872 | C7: 0 | D7: 4307 | E7: 27871 | F7: 4484 | Q7: 61872 | R7: 0 | S7: 4307 | T7: 27871 | U7: 4484
A8: 2017-08-05 | B8: 61872 | C8: 0 | D8: 4307 | E8: 27871 | F8: 4484 | Q8: 61872 | R8: 0 | S8: 4307 | T8: 27871 | U8: 4484
A9: 2017-08-06 | B9: 61872 | C9: 0 | D9: 4307 | E9: 27871 | F9: 4484 | Q9: 61872 | R9: 0 | S9: 4307 | T9: 27871 | U9: 4484
A10: 2017-08-07 | B10: 61872 | C10: 0 | D10: 4307 | E10: 27871 | F10: 4484 | Q10: 61872 | R10: 0 | S10: 4307 | T10: 27871 | U10: 4484
A11: 2017-08-08 | B11: 61872 | C11: 0 | D11: 4307 | E11: 27871 | F11: 4484 | Q11: 61872 | R11: 0 | S11: 4307 | T11: 27871 | U11: 4484
A12: 2017-08-09 | B12: 61872 | C12: 0 | D12: 4307 | E12: 27871 | F12: 4484 | Q12: 61872 | R12: 0 | S12: 4307 | T12: 27871 | U12: 4484
A13: 2017-08-10 | B13: 61872 | C13: 0 | D13: 4307 | E13: 27871 | F13: 4484 | Q13: 61872 | R13: 0 | S13: 4307 | T13: 27871 | U13: 4484
A14: 2017-08-11 | B14: 61872 | C14: 0 | D14: 4307 | E14: 27871 | F14: 4484 | Q14: 61872 | R14: 0 | S14: 4307 | T14: 27871 | U14: 4484
A15: 2017-08-12 | B15: 61872 | C15: 0 | D15: 4307 | E15: 27871 | F15: 4484 | Q15: 61872 | R15: 0 | S15: 4307 | T15: 27871 | U15: 4484
A16: 2017-08-13 | B16: 61872 | C16: 0 | D16: 4307 | E16: 27871 | F16: 4484 | Q16: 61872 | R16: 0 | S16: 4307 | T16: 27871 | U16: 4484
A17: 2017-08-14 | B17: 61872 | C17: 0 | D17: 4307 | E17: 27871 | F17: 4484 | Q17: 61872 | R17: 0 | S17: 4307 | T17: 27871 | U17: 4484
A18: 2017-08-15 | B18: 61872 | C18: 0 | D18: 4307 | E18: 27871 | F18: 4484 | Q18: 61872 | R18: 0 | S18: 4307 | T18: 27871 | U18: 4484
A19: 2017-08-16 | B19: 61872 | C19: 0 | D19: 4307 | E19: 27871 | F19: 4484 | Q19: 61872 | R19: 0 | S19: 4307 | T19: 27871 | U19: 4484
A20: 2017-08-17 | B20: 61872 | C20: 0 | D20: 4307 | E20: 27871 | F20: 4484 | Q20: 61872 | R20: 0 | S20: 4307 | T20: 27871 | U20: 4484
A21: 2017-08-18 | B21: =Q20 -> 61872 | C21: 0 | D21: 4307 | E21: 27871 | F21: 4484 | Q21: 61872 | R21: 0 | S21: 4307 | T21: 27871 | U21: 4484
A22: 2017-08-19 | B22: 61872 | C22: 0 | D22: 4307 | E22: 27871 | F22: 4484 | Q22: 61872 | R22: 0 | S22: 4307 | T22: 27871 | U22: 4484
A23: 2017-08-20 | B23: 61872 | C23: 0 | D23: 4307 | E23: 27871 | F23: 4484 | Q23: 61872 | R23: 0 | S23: 4307 | T23: 27871 | U23: 4484
A24: 2017-08-21 | B24: 61872 | C24: 0 | D24: 4307 | E24: 27871 | F24: 4484 | Q24: 61872 | R24: 0 | S24: 4307 | T24: 27871 | U24: 4484
A25: 2017-08-22 | B25: 61872 | C25: 0 | D25: 4307 | E25: 27871 | F25: 4484 | Q25: 61872 | R25: 0 | S25: 4307 | T25: 27871 | U25: 4484
A26: 2017-08-23 | B26: 61872 | C26: 0 | D26: 4307 | E26: 27871 | F26: 4484 | Q26: 61872 | R26: 0 | S26: 4307 | T26: 27871 | U26: 4484
A27: 2017-08-24 | B27: 61872 | C27: 0 | D27: 4307 | E27: 27871 | F27: 4484 | Q27: 61872 | R27: 0 | S27: 4307 | T27: 27871 | U27: 4484
A28: 2017-08-25 | B28: 61872 | C28: 0 | D28: 4307 | E28: 27871 | F28: 4484 | Q28: 61872 | R28: 0 | S28: 4307 | T28: 27871 | U28: 4484
A29: 2017-08-26 | B29: =Q28 -> 61872 | C29: 0 | D29: 4307 | E29: 27871 | F29: 4484 | Q29: 61872 | R29: 0 | S29: 4307 | T29: 27871 | U29: 4484
A30: 2017-08-27 | B30: 61872 | C30: 0 | D30: 4307 | E30: 27871 | F30: 4484 | Q30: 61872 | R30: 0 | S30: 4307 | T30: 27871 | U30: 4484
A31: 2017-08-28 | B31: 61872 | C31: 0 | D31: 4307 | E31: 27871 | F31: 4484 | Q31: 61872 | R31: 0 | S31: 4307 | T31: 27871 | U31: 4484
A32: 2017-08-29 | B32: 61872 | C32: 0 | D32: 4307 | E32: 27871 | F32: 4484 | Q32: 61872 | R32: 0 | S32: 4307 | T32: 27871 | U32: 4484
A33: 2017-08-30 | B33: 61872 | C33: 0 | D33: 4307 | E33: 27871 | F33: 4484 | Q33: 61872 | R33: 0 | S33: 4307 | T33: 27871 | U33: 4484
A34: 2017-08-31 | B34: 61872 | C34: 0 | D34: 4307 | E34: 27871 | F34: 4484 | Q34: 61872 | R34: 0 | S34: 4307 | T34: 27871 | U34: 4484
A36: Итого | B36: =B18 -> 61872 | C36: =C18 -> 0 | D36: =D18 -> 4307 | E36: =E18 -> 27871 | F36: =F18 -> 4484 | G36: =G4+G5+G6+G7+G8+G9+G10+G11+G12+G13+G14+G15+G16+G17+G18+G19+G20+G21+G22+G23+G24+G25+G26+G27+G28+G30+G31+G32+G33+G34 -> 0 | H36: 0 | I36: 0 | J36: 0 | K36: 0 | L36: 0 | M36: 0 | N36: 0 | O36: 0 | P36: 0 | Q36: =Q34 -> 61872 | R36: =R34 -> 0 | S36: =S34 -> 4307 | T36: =T34 -> 27871 | U36: =U34 -> 4484

Sheet Сентябрь
A1: Движние ГП за Сентябрь 2017 года
A2: N/N | B2: Остаток на начало периода | G2: Приход | L2: Продано банки 1 литр | M2: Продано банка 2,4 литр | N2: Продано банка 3 литр | O2: Продоно Крышки № 5 | P2: Продоно Крышка № 9;10 | Q2: Остаток на конец периода
B3: 1 литр | C3: 2,4 литра | D3: 3 литр | E3: Крышка № 5 | F3: Крышка № 9;10 | G3: 1 литр | H3: 2,4 литра | I3: 3 литр | J3: Крышка № 5 | K3: Крышка № 9;10 | L3: Количество | M3: Количество | N3: Количество | O3: Количество | P3: Количество | Q3: 1 литр | R3: 2,4 литра | S3: 3 литра | T3: Крышка № 5 | U3: Крышка № 9;10
A4: 2017-09-01 | B4: =Август!Q36 -> 61872 | C4: =Август!R36 -> 0 | D4: =Август!S36 -> 4307 | E4: =Август!T36 -> 27871 | F4: =Август!U36 -> 4484 | Q4: =B4+G4-L4 -> 61872 | R4: =C4+H4-M4 -> 0 | S4: 4307 | T4: 27871 | U4: 4484
A5: 2017-09-02 | B5: =Q4 -> 61872 | C5: 0 | D5: 4307 | E5: 27871 | F5: 4484 | Q5: =B5+G5-L5 -> 61872 | R5: =C5+H5-M5 -> 0 | S5: =D5+I5-N5 -> 4307 | T5: =E5+J5-O5 -> 27871 | U5: =F5+K5-P5 -> 4484
A6: 2017-09-03 | B6: 61872 | C6: 0 | D6: 4307 | E6: 27871 | F6: 4484 | Q6: 61872 | R6: 0 | S6: 4307 | T6: 27871 | U6: 4484
A7: 2017-09-04 | B7: 61872 | C7: 0 | D7: 4307 | E7: 27871 | F7: 4484 | Q7: 61872 | R7: 0 | S7: 4307 | T7: 27871 | U7: 4484
A8: 2017-09-05 | B8: 61872 | C8: 0 | D8: 4307 | E8: 27871 | F8: 4484 | Q8: 61872 | R8: 0 | S8: 4307 | T8: 27871 | U8: 4484
A9: 2017-09-06 | B9: 61872 | C9: 0 | D9: 4307 | E9: 27871 | F9: 4484 | Q9: 61872 | R9: 0 | S9: 4307 | T9: 27871 | U9: 4484
A10: 2017-09-07 | B10: 61872 | C10: 0 | D10: 4307 | E10: 27871 | F10: 4484 | Q10: 61872 | R10: 0 | S10: 4307 | T10: 27871 | U10: 4484
A11: 2017-09-08 | B11: 61872 | C11: 0 | D11: 4307 | E11: 27871 | F11: 4484 | Q11: 61872 | R11: 0 | S11: 4307 | T11: 27871 | U11: 4484
A12: 2017-09-09 | B12: 61872 | C12: 0 | D12: 4307 | E12: 27871 | F12: 4484 | Q12: 61872 | R12: 0 | S12: 4307 | T12: 27871 | U12: 4484
A13: 2017-09-10 | B13: 61872 | C13: 0 | D13: 4307 | E13: 27871 | F13: 4484 | Q13: 61872 | R13: 0 | S13: 4307 | T13: 27871 | U13: 4484
A14: 2017-09-11 | B14: 61872 | C14: 0 | D14: 4307 | E14: 27871 | F14: 4484 | Q14: 61872 | R14: 0 | S14: 4307 | T14: 27871 | U14: 4484
A15: 2017-09-12 | B15: 61872 | C15: 0 | D15: 4307 | E15: 27871 | F15: 4484 | Q15: 61872 | R15: 0 | S15: 4307 | T15: 27871 | U15: 4484
A16: 2017-09-13 | B16: 61872 | C16: 0 | D16: 4307 | E16: 27871 | F16: 4484 | Q16: 61872 | R16: 0 | S16: 4307 | T16: 27871 | U16: 4484
A17: 2017-09-14 | B17: 61872 | C17: 0 | D17: 4307 | E17: 27871 | F17: 4484 | Q17: 61872 | R17: 0 | S17: 4307 | T17: 27871 | U17: 4484
A18: 2017-09-15 | B18: 61872 | C18: 0 | D18: 4307 | E18: 27871 | F18: 4484 | Q18: 61872 | R18: 0 | S18: 4307 | T18: 27871 | U18: 4484
A19: 2017-09-16 | B19: 61872 | C19: 0 | D19: 4307 | E19: 27871 | F19: 4484 | Q19: 61872 | R19: 0 | S19: 4307 | T19: 27871 | U19: 4484
A20: 2017-09-17 | B20: 61872 | C20: 0 | D20: 4307 | E20: 27871 | F20: 4484 | Q20: 61872 | R20: 0 | S20: 4307 | T20: 27871 | U20: 4484
A21: 2017-09-18 | B21: =Q20 -> 61872 | C21: 0 | D21: 4307 | E21: 27871 | F21: 4484 | Q21: 61872 | R21: 0 | S21: 4307 | T21: 27871 | U21: 4484
A22: 2017-09-19 | B22: 61872 | C22: 0 | D22: 4307 | E22: 27871 | F22: 4484 | Q22: 61872 | R22: 0 | S22: 4307 | T22: 27871 | U22: 4484
A23: 2017-09-20 | B23: 61872 | C23: 0 | D23: 4307 | E23: 27871 | F23: 4484 | Q23: 61872 | R23: 0 | S23: 4307 | T23: 27871 | U23: 4484
A24: 2017-09-21 | B24: 61872 | C24: 0 | D24: 4307 | E24: 27871 | F24: 4484 | Q24: 61872 | R24: 0 | S24: 4307 | T24: 27871 | U24: 4484
A25: 2017-09-22 | B25: 61872 | C25: 0 | D25: 4307 | E25: 27871 | F25: 4484 | Q25: 61872 | R25: 0 | S25: 4307 | T25: 27871 | U25: 4484
A26: 2017-09-23 | B26: 61872 | C26: 0 | D26: 4307 | E26: 27871 | F26: 4484 | Q26: 61872 | R26: 0 | S26: 4307 | T26: 27871 | U26: 4484
A27: 2017-09-24 | B27: 61872 | C27: 0 | D27: 4307 | E27: 27871 | F27: 4484 | Q27: 61872 | R27: 0 | S27: 4307 | T27: 27871 | U27: 4484
A28: 2017-09-25 | B28: 61872 | C28: 0 | D28: 4307 | E28: 27871 | F28: 4484 | Q28: 61872 | R28: 0 | S28: 4307 | T28: 27871 | U28: 4484
A29: 2017-09-26 | B29: 61872 | C29: 0 | D29: 4307 | E29: 27871 | F29: 4484 | Q29: 61872 | R29: 0 | S29: 4307 | T29: 27871 | U29: 4484
A30: 2017-09-27 | B30: 61872 | C30: 0 | D30: 4307 | E30: 27871 | F30: 4484 | Q30: 61872 | R30: 0 | S30: 4307 | T30: 27871 | U30: 4484
A31: 2017-09-28 | B31: 61872 | C31: 0 | D31: 4307 | E31: 27871 | F31: 4484 | Q31: 61872 | R31: 0 | S31: 4307 | T31: 27871 | U31: 4484
A32: 2017-09-29 | B32: 61872 | C32: 0 | D32: 4307 | E32: 27871 | F32: 4484 | Q32: 61872 | R32: 0 | S32: 4307 | T32: 27871 | U32: 4484
A33: 2017-09-30 | B33: 61872 | C33: 0 | D33: 4307 | E33: 27871 | F33: 4484 | Q33: 61872 | R33: 0 | S33: 4307 | T33: 27871 | U33: 4484
A35: Итого | B35: =B18 -> 61872 | C35: =C18 -> 0 | D35: =D18 -> 4307 | E35: =E18 -> 27871 | F35: =F18 -> 4484 | G35: =G4+G5+G6+G7+G8+G9+G10+G11+G12+G13+G14+G15+G16+G17+G18+G19+G20+G21+G22+G23+G24+G25+G26+G27+G28+G29+G30+G31+G32+G33 -> 0 | H35: 0 | I35: 0 | J35: 0 | K35: 0 | L35: 0 | M35: 0 | N35: 0 | O35: 0 | P35: 0 | Q35: =Q33 -> 61872 | R35: =R33 -> 0 | S35: =S33 -> 4307 | T35: =T33 -> 27871 | U35: =U33 -> 4484

Sheet Октябрь
A1: Движние ГП за Октябрь 2017 года
A2: N/N | B2: Остаток на начало периода | G2: Приход | L2: Продано банки 1 литр | M2: Продано банка 2,4 литр | N2: Продано банка 3 литр | O2: Продоно Крышки № 5 | P2: Продоно Крышка № 9;10 | Q2: Остаток на конец периода
B3: 1 литр | C3: 2,4 литра | D3: 3 литр | E3: Крышка № 5 | F3: Крышка № 9;10 | G3: 1 литр | H3: 2,4 литра | I3: 3 литр | J3: Крышка № 5 | K3: Крышка № 9;10 | L3: Количество | M3: Количество | N3: Количество | O3: Количество | P3: Количество | Q3: 1 литр | R3: 2,4 литра | S3: 3 литра | T3: Крышка № 5 | U3: Крышка № 9;10
A4: 2017-06-01 | B4: =Сентябрь!Q35 -> 61872 | C4: =Сентябрь!R35 -> 0 | D4: =Сентябрь!S35 -> 4307 | E4: =Сентябрь!T35 -> 27871 | F4: =Сентябрь!U35 -> 4484 | Q4: =B4+G4-L4 -> 61872 | R4: =C4+H4-M4 -> 0 | S4: 4307 | T4: 27871 | U4: 4484
A5: 2017-06-02 | B5: =Q4 -> 61872 | C5: 0 | D5: 4307 | E5: 27871 | F5: 4484 | Q5: =B5+G5-L5 -> 61872 | R5: =C5+H5-M5 -> 0 | S5: =D5+I5-N5 -> 4307 | T5: =E5+J5-O5 -> 27871 | U5: =F5+K5-P5 -> 4484
A6: 2017-06-03 | B6: 61872 | C6: 0 | D6: 4307 | E6: 27871 | F6: 4484 | Q6: 61872 | R6: 0 | S6: 4307 | T6: 27871 | U6: 4484
A7: 2017-06-04 | B7: 61872 | C7: 0 | D7: 4307 | E7: 27871 | F7: 4484 | Q7: 61872 | R7: 0 | S7: 4307 | T7: 27871 | U7: 4484
A8: 2017-06-05 | B8: 61872 | C8: 0 | D8: 4307 | E8: 27871 | F8: 4484 | Q8: 61872 | R8: 0 | S8: 4307 | T8: 27871 | U8: 4484
A9: 2017-06-06 | B9: 61872 | C9: 0 | D9: 4307 | E9: 27871 | F9: 4484 | Q9: 61872 | R9: 0 | S9: 4307 | T9: 27871 | U9: 4484
A10: 2017-06-07 | B10: 61872 | C10: 0 | D10: 4307 | E10: 27871 | F10: 4484 | Q10: 61872 | R10: 0 | S10: 4307 | T10: 27871 | U10: 4484
A11: 2017-06-08 | B11: 61872 | C11: 0 | D11: 4307 | E11: 27871 | F11: 4484 | Q11: 61872 | R11: 0 | S11: 4307 | T11: 27871 | U11: 4484
A12: 2017-06-09 | B12: 61872 | C12: 0 | D12: 4307 | E12: 27871 | F12: 4484 | Q12: 61872 | R12: 0 | S12: 4307 | T12: 27871 | U12: 4484
A13: 2017-06-10 | B13: 61872 | C13: 0 | D13: 4307 | E13: 27871 | F13: 4484 | Q13: 61872 | R13: 0 | S13: 4307 | T13: 27871 | U13: 4484
A14: 2017-06-11 | B14: 61872 | C14: 0 | D14: 4307 | E14: 27871 | F14: 4484 | Q14: 61872 | R14: 0 | S14: 4307 | T14: 27871 | U14: 4484
A15: 2017-06-12 | B15: 61872 | C15: 0 | D15: 4307 | E15: 27871 | F15: 4484 | Q15: 61872 | R15: 0 | S15: 4307 | T15: 27871 | U15: 4484
A16: 2017-06-13 | B16: 61872 | C16: 0 | D16: 4307 | E16: 27871 | F16: 4484 | Q16: 61872 | R16: 0 | S16: 4307 | T16: 27871 | U16: 4484
A17: 2017-06-14 | B17: 61872 | C17: 0 | D17: 4307 | E17: 27871 | F17: 4484 | Q17: 61872 | R17: 0 | S17: 4307 | T17: 27871 | U17: 4484
A18: 2017-06-15 | B18: 61872 | C18: 0 | D18: 4307 | E18: 27871 | F18: 4484 | Q18: 61872 | R18: 0 | S18: 4307 | T18: 27871 | U18: 4484
A19: 2017-06-16 | B19: 61872 | C19: 0 | D19: 4307 | E19: 27871 | F19: 4484 | Q19: 61872 | R19: 0 | S19: 4307 | T19: 27871 | U19: 4484
A20: 2017-06-17 | B20: 61872 | C20: 0 | D20: 4307 | E20: 27871 | F20: 4484 | Q20: 61872 | R20: 0 | S20: 4307 | T20: 27871 | U20: 4484
A21: 2017-06-18 | B21: =Q20 -> 61872 | C21: 0 | D21: 4307 | E21: 27871 | F21: 4484 | Q21: 61872 | R21: 0 | S21: 4307 | T21: 27871 | U21: 4484
A22: 2017-06-19 | B22: 61872 | C22: 0 | D22: 4307 | E22: 27871 | F22: 4484 | Q22: 61872 | R22: 0 | S22: 4307 | T22: 27871 | U22: 4484
A23: 2017-06-20 | B23: 61872 | C23: 0 | D23: 4307 | E23: 27871 | F23: 4484 | Q23: 61872 | R23: 0 | S23: 4307 | T23: 27871 | U23: 4484
A24: 2017-06-21 | B24: 61872 | C24: 0 | D24: 4307 | E24: 27871 | F24: 4484 | Q24: 61872 | R24: 0 | S24: 4307 | T24: 27871 | U24: 4484
A25: 2017-06-22 | B25: 61872 | C25: 0 | D25: 4307 | E25: 27871 | F25: 4484 | Q25: 61872 | R25: 0 | S25: 4307 | T25: 27871 | U25: 4484
A26: 2017-06-23 | B26: 61872 | C26: 0 | D26: 4307 | E26: 27871 | F26: 4484 | Q26: 61872 | R26: 0 | S26: 4307 | T26: 27871 | U26: 4484
A27: 2017-06-24 | B27: 61872 | C27: 0 | D27: 4307 | E27: 27871 | F27: 4484 | Q27: 61872 | R27: 0 | S27: 4307 | T27: 27871 | U27: 4484
A28: 2017-06-25 | B28: 61872 | C28: 0 | D28: 4307 | E28: 27871 | F28: 4484 | Q28: 61872 | R28: 0 | S28: 4307 | T28: 27871 | U28: 4484
A29: 2017-06-26 | B29: 61872 | C29: 0 | D29: 4307 | E29: 27871 | F29: 4484 | Q29: 61872 | R29: 0 | S29: 4307 | T29: 27871 | U29: 4484
A30: 2017-06-27 | B30: 61872 | C30: 0 | D30: 4307 | E30: 27871 | F30: 4484 | Q30: 61872 | R30: 0 | S30: 4307 | T30: 27871 | U30: 4484
A31: 2017-06-28 | B31: 61872 | C31: 0 | D31: 4307 | E31: 27871 | F31: 4484 | Q31: 61872 | R31: 0 | S31: 4307 | T31: 27871 | U31: 4484
A32: 2017-06-29 | B32: 61872 | C32: 0 | D32: 4307 | E32: 27871 | F32: 4484 | Q32: 61872 | R32: 0 | S32: 4307 | T32: 27871 | U32: 4484
A33: 2017-06-30 | B33: =Q32 -> 61872 | C33: 0 | D33: 4307 | E33: 27871 | F33: 4484 | Q33: 61872 | R33: 0 | S33: 4307 | T33: 27871 | U33: 4484
A34: 31.06.2017 | B34: 61872 | C34: 0 | D34: 4307 | E34: 27871 | F34: 4484 | Q34: 61872 | R34: 0 | S34: 4307 | T34: 27871 | U34: 4484
A36: Итого | B36: =B18 -> 61872 | C36: =C18 -> 0 | D36: =D18 -> 4307 | E36: =E18 -> 27871 | F36: =F18 -> 4484 | G36: =G4+G5+G6+G7+G8+G9+G10+G11+G12+G13+G14+G15+G16+G17+G18+G19+G20+G21+G22+G23+G24+G25+G26+G27+G28+G30+G31+G32+G33+G34 -> 0 | H36: 0 | I36: 0 | J36: 0 | K36: 0 | L36: 0 | M36: 0 | N36: 0 | O36: 0 | P36: 0 | Q36: =Q34 -> 61872 | R36: =R34 -> 0 | S36: =S34 -> 4307 | T36: =T34 -> 27871 | U36: =U34 -> 4484

Sheet Ноябрь
A1: Движние ГП за Ноябрь 2017 года
A2: N/N | B2: Остаток на начало периода | G2: Приход | L2: Продано банки 1 литр | M2: Продано банка 2,4 литр | N2: Продано банка 3 литр | O2: Продоно Крышки № 5 | P2: Продоно Крышка № 9;10 | Q2: Остаток на конец периода
B3: 1 литр | C3: 2,4 литра | D3: 3 литр | E3: Крышка № 5 | F3: Крышка № 9;10 | G3: 1 литр | H3: 2,4 литра | I3: 3 литр | J3: Крышка № 5 | K3: Крышка № 9;10 | L3: Количество | M3: Количество | N3: Количество | O3: Количество | P3: Количество | Q3: 1 литр | R3: 2,4 литра | S3: 3 литра | T3: Крышка № 5 | U3: Крышка № 9;10
A4: 2017-06-01 | B4: =Октябрь!Q36 -> 61872 | C4: =Октябрь!R36 -> 0 | D4: =Октябрь!S36 -> 4307 | E4: =Октябрь!T36 -> 27871 | F4: =Октябрь!U36 -> 4484 | Q4: =B4+G4-L4 -> 61872 | R4: =C4+H4-M4 -> 0 | S4: 4307 | T4: 27871 | U4: 4484
A5: 2017-06-02 | B5: =Q4 -> 61872 | C5: 0 | D5: 4307 | E5: 27871 | F5: 4484 | Q5: =B5+G5-L5 -> 61872 | R5: =C5+H5-M5 -> 0 | S5: =D5+I5-N5 -> 4307 | T5: =E5+J5-O5 -> 27871 | U5: =F5+K5-P5 -> 4484
A6: 2017-06-03 | B6: 61872 | C6: 0 | D6: 4307 | E6: 27871 | F6: 4484 | Q6: 61872 | R6: 0 | S6: 4307 | T6: 27871 | U6: 4484
A7: 2017-06-04 | B7: 61872 | C7: 0 | D7: 4307 | E7: 27871 | F7: 4484 | Q7: 61872 | R7: 0 | S7: 4307 | T7: 27871 | U7: 4484
A8: 2017-06-05 | B8: 61872 | C8: 0 | D8: 4307 | E8: 27871 | F8: 4484 | Q8: 61872 | R8: 0 | S8: 4307 | T8: 27871 | U8: 4484
A9: 2017-06-06 | B9: 61872 | C9: 0 | D9: 4307 | E9: 27871 | F9: 4484 | Q9: 61872 | R9: 0 | S9: 4307 | T9: 27871 | U9: 4484
A10: 2017-06-07 | B10: 61872 | C10: 0 | D10: 4307 | E10: 27871 | F10: 4484 | Q10: 61872 | R10: 0 | S10: 4307 | T10: 27871 | U10: 4484
A11: 2017-06-08 | B11: 61872 | C11: 0 | D11: 4307 | E11: 27871 | F11: 4484 | Q11: 61872 | R11: 0 | S11: 4307 | T11: 27871 | U11: 4484
A12: 2017-06-09 | B12: 61872 | C12: 0 | D12: 4307 | E12: 27871 | F12: 4484 | Q12: 61872 | R12: 0 | S12: 4307 | T12: 27871 | U12: 4484
A13: 2017-06-10 | B13: 61872 | C13: 0 | D13: 4307 | E13: 27871 | F13: 4484 | Q13: 61872 | R13: 0 | S13: 4307 | T13: 27871 | U13: 4484
A14: 2017-06-11 | B14: 61872 | C14: 0 | D14: 4307 | E14: 27871 | F14: 4484 | Q14: 61872 | R14: 0 | S14: 4307 | T14: 27871 | U14: 4484
A15: 2017-06-12 | B15: 61872 | C15: 0 | D15: 4307 | E15: 27871 | F15: 4484 | Q15: 61872 | R15: 0 | S15: 4307 | T15: 27871 | U15: 4484
A16: 2017-06-13 | B16: 61872 | C16: 0 | D16: 4307 | E16: 27871 | F16: 4484 | Q16: 61872 | R16: 0 | S16: 4307 | T16: 27871 | U16: 4484
A17: 2017-06-14 | B17: 61872 | C17: 0 | D17: 4307 | E17: 27871 | F17: 4484 | Q17: 61872 | R17: 0 | S17: 4307 | T17: 27871 | U17: 4484
A18: 2017-06-15 | B18: 61872 | C18: 0 | D18: 4307 | E18: 27871 | F18: 4484 | Q18: 61872 | R18: 0 | S18: 4307 | T18: 27871 | U18: 4484
A19: 2017-06-16 | B19: 61872 | C19: 0 | D19: 4307 | E19: 27871 | F19: 4484 | Q19: 61872 | R19: 0 | S19: 4307 | T19: 27871 | U19: 4484
A20: 2017-06-17 | B20: 61872 | C20: 0 | D20: 4307 | E20: 27871 | F20: 4484 | Q20: 61872 | R20: 0 | S20: 4307 | T20: 27871 | U20: 4484
A21: 2017-06-18 | B21: =Q20 -> 61872 | C21: 0 | D21: 4307 | E21: 27871 | F21: 4484 | Q21: 61872 | R21: 0 | S21: 4307 | T21: 27871 | U21: 4484
A22: 2017-06-19 | B22: 61872 | C22: 0 | D22: 4307 | E22: 27871 | F22: 4484 | Q22: 61872 | R22: 0 | S22: 4307 | T22: 27871 | U22: 4484
A23: 2017-06-20 | B23: 61872 | C23: 0 | D23: 4307 | E23: 27871 | F23: 4484 | Q23: 61872 | R23: 0 | S23: 4307 | T23: 27871 | U23: 4484
A24: 2017-06-21 | B24: 61872 | C24: 0 | D24: 4307 | E24: 27871 | F24: 4484 | Q24: 61872 | R24: 0 | S24: 4307 | T24: 27871 | U24: 4484
A25: 2017-06-22 | B25: 61872 | C25: 0 | D25: 4307 | E25: 27871 | F25: 4484 | Q25: 61872 | R25: 0 | S25: 4307 | T25: 27871 | U25: 4484
A26: 2017-06-23 | B26: 61872 | C26: 0 | D26: 4307 | E26: 27871 | F26: 4484 | Q26: 61872 | R26: 0 | S26: 4307 | T26: 27871 | U26: 4484
A27: 2017-06-24 | B27: 61872 | C27: 0 | D27: 4307 | E27: 27871 | F27: 4484 | Q27: 61872 | R27: 0 | S27: 4307 | T27: 27871 | U27: 4484
A28: 2017-06-25 | B28: 61872 | C28: 0 | D28: 4307 | E28: 27871 | F28: 4484 | Q28: 61872 | R28: 0 | S28: 4307 | T28: 27871 | U28: 4484
A29: 2017-06-26 | B29: 61872 | C29: 0 | D29: 4307 | E29: 27871 | F29: 4484 | Q29: 61872 | R29: 0 | S29: 4307 | T29: 27871 | U29: 4484
A30: 2017-06-27 | B30: 61872 | C30: 0 | D30: 4307 | E30: 27871 | F30: 4484 | Q30: 61872 | R30: 0 | S30: 4307 | T30: 27871 | U30: 4484
A31: 2017-06-28 | B31: 61872 | C31: 0 | D31: 4307 | E31: 27871 | F31: 4484 | Q31: 61872 | R31: 0 | S31: 4307 | T31: 27871 | U31: 4484
A32: 2017-06-29 | B32: 61872 | C32: 0 | D32: 4307 | E32: 27871 | F32: 4484 | Q32: 61872 | R32: 0 | S32: 4307 | T32: 27871 | U32: 4484
A33: 2017-06-30 | B33: 61872 | C33: 0 | D33: 4307 | E33: 27871 | F33: 4484 | Q33: 61872 | R33: 0 | S33: 4307 | T33: 27871 | U33: 4484
A35: Итого | B35: =B18 -> 61872 | C35: =C18 -> 0 | D35: =D18 -> 4307 | E35: =E18 -> 27871 | F35: =F18 -> 4484 | G35: =G4+G5+G6+G7+G8+G9+G10+G11+G12+G13+G14+G15+G16+G17+G18+G19+G20+G21+G22+G23+G24+G25+G26+G27+G28+G29+G30+G31+G32+G33 -> 0 | H35: 0 | I35: 0 | J35: 0 | K35: 0 | L35: 0 | M35: 0 | N35: 0 | O35: 0 | P35: 0 | Q35: =Q33 -> 61872 | R35: =R33 -> 0 | S35: =S33 -> 4307 | T35: =T33 -> 27871 | U35: =U33 -> 4484

Sheet Декабрь
A1: Движние ГП за Декабрь 2017 года
A2: N/N | B2: Остаток на начало периода | G2: Приход | L2: Продано банки 1 литр | M2: Продано банка 2,4 литр | N2: Продано банка 3 литр | O2: Продоно Крышки № 5 | P2: Продоно Крышка № 9;10 | Q2: Остаток на конец периода
B3: 1 литр | C3: 2,4 литра | D3: 3 литр | E3: Крышка № 5 | F3: Крышка № 9;10 | G3: 1 литр | H3: 2,4 литра | I3: 3 литр | J3: Крышка № 5 | K3: Крышка № 9;10 | L3: Количество | M3: Количество | N3: Количество | O3: Количество | P3: Количество | Q3: 1 литр | R3: 2,4 литра | S3: 3 литра | T3: Крышка № 5 | U3: Крышка № 9;10
A4: 2017-06-01 | B4: =Ноябрь!Q35 -> 61872 | C4: =Ноябрь!R35 -> 0 | D4: =Ноябрь!S35 -> 4307 | E4: =Ноябрь!T35 -> 27871 | F4: =Ноябрь!U35 -> 4484 | Q4: =B4+G4-L4 -> 61872 | R4: =C4+H4-M4 -> 0 | S4: 4307 | T4: 27871 | U4: 4484
A5: 2017-06-02 | B5: =Q4 -> 61872 | C5: 0 | D5: 4307 | E5: 27871 | F5: 4484 | Q5: =B5+G5-L5 -> 61872 | R5: =C5+H5-M5 -> 0 | S5: =D5+I5-N5 -> 4307 | T5: =E5+J5-O5 -> 27871 | U5: =F5+K5-P5 -> 4484
A6: 2017-06-03 | B6: 61872 | C6: 0 | D6: 4307 | E6: 27871 | F6: 4484 | Q6: 61872 | R6: 0 | S6: 4307 | T6: 27871 | U6: 4484
A7: 2017-06-04 | B7: 61872 | C7: 0 | D7: 4307 | E7: 27871 | F7: 4484 | Q7: 61872 | R7: 0 | S7: 4307 | T7: 27871 | U7: 4484
A8: 2017-06-05 | B8: 61872 | C8: 0 | D8: 4307 | E8: 27871 | F8: 4484 | Q8: 61872 | R8: 0 | S8: 4307 | T8: 27871 | U8: 4484
A9: 2017-06-06 | B9: 61872 | C9: 0 | D9: 4307 | E9: 27871 | F9: 4484 | Q9: 61872 | R9: 0 | S9: 4307 | T9: 27871 | U9: 4484
A10: 2017-06-07 | B10: 61872 | C10: 0 | D10: 4307 | E10: 27871 | F10: 4484 | Q10: 61872 | R10: 0 | S10: 4307 | T10: 27871 | U10: 4484
A11: 2017-06-08 | B11: 61872 | C11: 0 | D11: 4307 | E11: 27871 | F11: 4484 | Q11: 61872 | R11: 0 | S11: 4307 | T11: 27871 | U11: 4484
A12: 2017-06-09 | B12: 61872 | C12: 0 | D12: 4307 | E12: 27871 | F12: 4484 | Q12: 61872 | R12: 0 | S12: 4307 | T12: 27871 | U12: 4484
A13: 2017-06-10 | B13: 61872 | C13: 0 | D13: 4307 | E13: 27871 | F13: 4484 | Q13: 61872 | R13: 0 | S13: 4307 | T13: 27871 | U13: 4484
A14: 2017-06-11 | B14: 61872 | C14: 0 | D14: 4307 | E14: 27871 | F14: 4484 | Q14: 61872 | R14: 0 | S14: 4307 | T14: 27871 | U14: 4484
A15: 2017-06-12 | B15: 61872 | C15: 0 | D15: 4307 | E15: 27871 | F15: 4484 | Q15: 61872 | R15: 0 | S15: 4307 | T15: 27871 | U15: 4484
A16: 2017-06-13 | B16: 61872 | C16: 0 | D16: 4307 | E16: 27871 | F16: 4484 | Q16: 61872 | R16: 0 | S16: 4307 | T16: 27871 | U16: 4484
A17: 2017-06-14 | B17: 61872 | C17: 0 | D17: 4307 | E17: 27871 | F17: 4484 | Q17: 61872 | R17: 0 | S17: 4307 | T17: 27871 | U17: 4484
A18: 2017-06-15 | B18: 61872 | C18: 0 | D18: 4307 | E18: 27871 | F18: 4484 | Q18: 61872 | R18: 0 | S18: 4307 | T18: 27871 | U18: 4484
A19: 2017-06-16 | B19: 61872 | C19: 0 | D19: 4307 | E19: 27871 | F19: 4484 | Q19: 61872 | R19: 0 | S19: 4307 | T19: 27871 | U19: 4484
A20: 2017-06-17 | B20: 61872 | C20: 0 | D20: 4307 | E20: 27871 | F20: 4484 | Q20: 61872 | R20: 0 | S20: 4307 | T20: 27871 | U20: 4484
A21: 2017-06-18 | B21: =Q20 -> 61872 | C21: 0 | D21: 4307 | E21: 27871 | F21: 4484 | Q21: 61872 | R21: 0 | S21: 4307 | T21: 27871 | U21: 4484
A22: 2017-06-19 | B22: 61872 | C22: 0 | D22: 4307 | E22: 27871 | F22: 4484 | Q22: 61872 | R22: 0 | S22: 4307 | T22: 27871 | U22: 4484
A23: 2017-06-20 | B23: 61872 | C23: 0 | D23: 4307 | E23: 27871 | F23: 4484 | Q23: 61872 | R23: 0 | S23: 4307 | T23: 27871 | U23: 4484
A24: 2017-06-21 | B24: 61872 | C24: 0 | D24: 4307 | E24: 27871 | F24: 4484 | Q24: 61872 | R24: 0 | S24: 4307 | T24: 27871 | U24: 4484
A25: 2017-06-22 | B25: 61872 | C25: 0 | D25: 4307 | E25: 27871 | F25: 4484 | Q25: 61872 | R25: 0 | S25: 4307 | T25: 27871 | U25: 4484
A26: 2017-06-23 | B26: 61872 | C26: 0 | D26: 4307 | E26: 27871 | F26: 4484 | Q26: 61872 | R26: 0 | S26: 4307 | T26: 27871 | U26: 4484
A27: 2017-06-24 | B27: 61872 | C27: 0 | D27: 4307 | E27: 27871 | F27: 4484 | Q27: 61872 | R27: 0 | S27: 4307 | T27: 27871 | U27: 4484
A28: 2017-06-25 | B28: 61872 | C28: 0 | D28: 4307 | E28: 27871 | F28: 4484 | Q28: 61872 | R28: 0 | S28: 4307 | T28: 27871 | U28: 4484
A29: 2017-06-26 | B29: 61872 | C29: 0 | D29: 4307 | E29: 27871 | F29: 4484 | Q29: 61872 | R29: 0 | S29: 4307 | T29: 27871 | U29: 4484
A30: 2017-06-27 | B30: 61872 | C30: 0 | D30: 4307 | E30: 27871 | F30: 4484 | Q30: 61872 | R30: 0 | S30: 4307 | T30: 27871 | U30: 4484
A31: 2017-06-28 | B31: 61872 | C31: 0 | D31: 4307 | E31: 27871 | F31: 4484 | Q31: 61872 | R31: 0 | S31: 4307 | T31: 27871 | U31: 4484
A32: 2017-06-29 | B32: 61872 | C32: 0 | D32: 4307 | E32: 27871 | F32: 4484 | Q32: 61872 | R32: 0 | S32: 4307 | T32: 27871 | U32: 4484
A33: 2017-06-30 | B33: =Q32 -> 61872 | C33: 0 | D33: 4307 | E33: 27871 | F33: 4484 | Q33: 61872 | R33: 0 | S33: 4307 | T33: 27871 | U33: 4484
A34: 31.06.2017 | B34: 61872 | C34: 0 | D34: 4307 | E34: 27871 | F34: 4484 | Q34: 61872 | R34: 0 | S34: 4307 | T34: 27871 | U34: 4484
A36: Итого | B36: =B18 -> 61872 | C36: =C18 -> 0 | D36: =D18 -> 4307 | E36: =E18 -> 27871 | F36: =F18 -> 4484 | G36: =G4+G5+G6+G7+G8+G9+G10+G11+G12+G13+G14+G15+G16+G17+G18+G19+G20+G21+G22+G23+G24+G25+G26+G27+G28+G30+G31+G32+G33+G34 -> 0 | H36: 0 | I36: 0 | J36: 0 | K36: 0 | L36: 0 | M36: 0 | N36: 0 | O36: 0 | P36: 0 | Q36: =Q34 -> 61872 | R36: =R34 -> 0 | S36: =S34 -> 4307 | T36: =T34 -> 27871 | U36: =U34 -> 4484
